[Event "Austrian Championship 2022"]
[Site "Vienna"]
[Date "2022.08.15"]
[Round "5.4"]
[White "Mayrhuber, Tobias"]
[Black "Oberhuber, Alexander"]
[Result "0-1"]
[ECO "B22"]
[WhiteElo "2010"]
[BlackElo "2062"]
[Annotator "NA RC"]
[PlyCount "104"]
[EventDate "2022.08.12"]
[EventType "swiss"]
[EventCountry "AUT"]
[SourceTitle "playchess.com"]
[Source "ChessBase"]
[SourceQuality "1"]
[TimeControl "40/5400+30:1800+30"]

1. e4 {[%emt 0:00:04]} c5 {[%emt 0:00:03]} 2. c3 {[%emt 0:00:08]} d5 {[%emt 0:00:54]} 3. exd5 {[%emt 0:00:06]} Qxd5 {[%emt 0:00:07]} 4. d4 {[%emt 0:00:07]} e5 {[%emt 0:03:08]} 5. Be3 {[%emt 0:03:14]} cxd4 {[%emt 0:01:39]} 6. cxd4 {[%emt 0:00:40]} Nf6 {[%emt 0:06:57]} 7. Nc3 {[%emt 0:01:51]} Bb4 {[%emt 0:00:39]} 8. Nf3 {[%emt 0:04:06]} Nc6 {[%emt 0:10:46]} 9. dxe5 {[%emt 0:09:23]} Nxe5 {[%emt 0:02:15]} 10. Qa4+ {[%emt 0:05:24]} Nc6 {[%emt 0:00:13]} 11. Bb5 {[%emt 0:00:23]} O-O {[%emt 0:02:01]} 12. O-O {[%emt 0:00:45]} Bxc3 {[%emt 0:00:09]} 13. bxc3 {[%emt 0:00:36]} Bd7 {[%emt 0:02:27]} 14. Rad1 {[%emt 0:01:34]} Qh5 {[%emt 0:01:31]} 15. Be2 {[%emt 0:07:37]} Rfe8 {[%emt 0:03:20]} 16. Qb5 {[%emt 0:05:09]} Qxb5 {[%emt 0:00:21]} 17. Bxb5 {[%emt 0:00:05]} a6 {[%emt 0:00:22]} 18. Be2 {[%emt 0:04:02]} Na5 {[%emt 0:02:03]} 19. Rfe1 {[%emt 0:01:41]} Rac8 {[%emt 0:02:15]} 20. Bb6 {[%emt 0:01:47]} Nc4 {[%emt 0:01:31]} 21. Bxc4 {[%emt 0:00:11]} Rxe1+ {[%emt 0:00:10]} 22. Rxe1 {[%emt 0:00:49]} Rxc4 {[%emt 0:00:12]} 23. Bd4 {[%emt 0:00:15]} Be6 {[%emt 0:03:50]} 24. Rb1 {[%emt 0:07:36]} b5 {[%emt 0:00:44]} 25. a3 {[%emt 0:01:54]} Ne4 {[%emt 0:03:58]} 26. Rc1 {[%emt 0:04:07]} f6 {[%emt 0:02:00]} 27. Kf1 {[%emt 0:01:26]} Kf7 {[%emt 0:02:27]} 28. Ke2 {[%emt 0:11:49]} Bg4 {[%emt 0:00:59]} 29. Kd3 {[%emt 0:06:36]} Bxf3 {[%emt 0:00:47]} 30. gxf3 {[%emt 0:00:05]} Ng5 {[%emt 0:01:52]} 31. f4 {[%emt 0:07:13]} Ne6 {[%emt 0:00:09]} 32. Re1 {[%emt 0:00:17]} f5 {[%emt 0:02:43]} 33. Re5 {[%emt 0:02:10]} g6 {[%emt 0:00:59]} 34. Be3 {[%emt 0:00:45]} Nxf4+ {[%emt 0:00:49]} 35. Bxf4 {[%emt 0:00:09]} Rxf4 {[%emt 0:00:05]} 36. Rc5 {[%emt 0:00:24]} Ra4 {[%emt 0:00:09]} 37. Rc7+ {[%emt 0:00:18]} Kf6 {[%emt 0:00:16]} 38. Rxh7 {[%emt 0:00:16]} Rxa3 {[%emt 0:00:06]} 39. h4 {[%emt 0:01:02]} b4 {[%emt 0:00:12]} 40. h5 {[%emt 0:00:05]} Rxc3+ {[%emt 0:00:17]} 41. Kd2 {[%emt 0:30:06]} Rh3 {[%emt 0:30:42]} 42. Ra7 {[%emt 0:00:11]} Rxh5 {[%emt 0:00:11]} 43. Rxa6+ {[%emt 0:00:05]} Kg5 {[%emt 0:00:33]} 44. f4+ {[%emt 0:00:12]} Kxf4 {[%emt 0:00:11]} 45. Rxg6 {[%emt 0:00:05]} Rh2+ {[%emt 0:00:36]} 46. Kd3 {[%emt 0:00:07]} Rh3+ {[%emt 0:00:07]} 47. Kc4 {[%emt 0:00:09]} b3 {[%emt 0:00:02]} 48. Rb6 {[%emt 0:00:14]} Ke5 {[%emt 0:00:23]} 49. Rxb3 {[%emt 0:00:26]} Rxb3 {[%emt 0:00:07]} 50. Kxb3 {[%emt 0:00:02]} Kd4 {[%emt 0:00:12]} 51. Kc2 {[%emt 0:00:06]} Ke3 {[%emt 0:00:07]} 52. Kd1 {[%emt 0:00:05]} Kf2 {[%emt 0:00:09]} 0-1

[Event "Austrian Championship 2022"]
[Site "Vienna"]
[Date "2022.08.15"]
[Round "5.5"]
[White "Diermair, Andreas"]
[Black "Marakovits, Nico"]
[Result "1-0"]
[ECO "D37"]
[WhiteElo "2452"]
[BlackElo "2259"]
[Annotator "TA"]
[PlyCount "85"]
[EventDate "2022.08.12"]
[EventType "swiss"]
[EventCountry "AUT"]
[SourceTitle "playchess.com"]
[Source "ChessBase"]
[SourceQuality "1"]
[TimeControl "40/5400+30:1800+30"]

{[%evp 14,85,14,0,50,35,62,17,63,23,108,108,115,116,111,0,0,0,123,90,81,90,91,92,86,93,102,103,101,101,130,140,114,115,225,147,150,144,262,264,264,257,251,254,616,269,290,284,282,281,279,265,266,242,525,500,505,489,614,614,595,575,594,558,1816,1499,1716,1058,1556,1175,1679,1553,1588,1327]} 1. c4 {[%emt 0:00:06]} Nf6 {[%emt 0:00:07]} 2. Nf3 {[%emt 0:00:39]} e6 {[%emt 0:00:35]} 3. Nc3 {[%emt 0:02:27]} d5 {[%emt 0:02:18]} 4. d4 {[%emt 0:00:10]} Be7 {[%emt 0:00:36]} 5. Bf4 {[%emt 0:02:06]} c6 {[%emt 0:02:16]} 6. e3 {[%emt 0:00:55]} Nbd7 {[%emt 0:01:09]} 7. h3 {[%emt 0:00:20]} O-O {[%emt 0:08:24]} 8. Rc1 {[%emt 0:08:10]} Re8 {[%emt 0:04:26] D37: Queen's Gambit Declined: 5 Bf4.} (8... c5 $11) 9. a3 $14 {[%emt 0:01:43]} a5 {[%emt 0:13:55] [#]} 10. Bh2 $146 {[%emt 0:05:41]} ({Predecessor:} 10. g4 dxc4 11. Bxc4 Nb6 12. Bd3 Nbd5 13. Bh2 Nxc3 14. Rxc3 Nd5 15. Rc1 Bd6 16. Bxd6 Qxd6 {1-0 (28) Pultorak,J (1908)-Chapman,N (1789) Brno 2013}) 10... Nf8 {[%emt 0:05:30]} (10... dxc4 $11 11. Bxc4 b5) 11. c5 {[%emt 0:01:36]} N8d7 {[%emt 0:09:07]} (11... N6d7 $11) 12. Na4 $16 {[%emt 0:03:33]} b6 {[%emt 0:11:23]} 13. cxb6 {[%emt 0:02:01]} Nxb6 {[%emt 0:00:16]} 14. Nc5 {[%emt 0:00:56]} ({Better is} 14. Ne5 $16 Nxa4 15. Qxa4) 14... Nbd7 $1 $11 {[%emt 0:07:44]} 15. Na4 {[%emt 0:10:16]} (15. Nxd7 $11 Bxd7 16. Bd3) 15... Nb6 $16 {[%emt 0:10:19]} 16. Rxc6 {[%emt 0:09:48]} Bd7 {[%emt 0:01:03] [#]} 17. Nxb6 $1 {[%emt 0:01:24] White is more active.} Bxc6 {[%emt 0:00:08]} 18. Nxa8 {[%emt 0:00:05]} Qxa8 {[%emt 0:00:30]} 19. Bd3 $36 {[%emt 0:00:29][%mdl 2048] Keeping Black busy.} Qb7 {[%emt 0:00:37]} 20. Qe2 {[%emt 0:01:37]} Ne4 {[%emt 0:01:34]} 21. O-O {[%emt 0:02:18]} Bd6 {[%emt 0:01:15]} 22. Bxd6 {[%emt 0:03:31]} Nxd6 {[%emt 0:00:09]} 23. Rc1 {[%emt 0:02:52] Against Nc4} g6 {[%emt 0:02:12]} (23... Rb8 $16 24. b3 Bb5) 24. Rc5 {[%emt 0:01:17]} Ra8 {[%emt 0:05:42]} 25. h4 {[%emt 0:03:11]} Ne4 {[%emt 0:02:34]} (25... Be8 $16 26. Ne5 a4) 26. Bxe4 $18 {[%emt 0:02:43]} dxe4 {[%emt 0:00:19]} 27. Ne5 {[%emt 0:00:12]} Bd5 {[%emt 0:00:26]} 28. Qc2 {[%emt 0:02:08]} Rb8 $2 {[%emt 0:01:41] [#]} (28... Ra7 29. h5 Kg7) 29. Rxa5 {[%emt 0:02:27]} (29. Rc7 $142 Qb5 30. Nxf7) 29... Qxb2 {[%emt 0:00:11]} 30. Qc7 {[%emt 0:02:36]} Qb7 {[%emt 0:03:22]} 31. Ra7 {[%emt 0:05:51] Dancing on a razor blade.} Qxc7 {[%emt 0:00:15]} 32. Rxc7 {[%emt 0:00:03][%mdl 4096] Endgame KRB-KRN} Rb1+ {[%emt 0:00:18]} 33. Kh2 {[%emt 0:00:06]} Rb7 $2 {[%emt 0:01:21]} (33... f5 {keeps fighting.} 34. Kg3 Rb2) 34. Rxb7 {[%emt 0:00:31] White is clearly winning.} Bxb7 {[%emt 0:00:05] KB-KN} 35. g4 {[%emt 0:03:44]} f6 {[%emt 0:01:07]} 36. Nd7 {[%emt 0:00:07]} Kf7 {[%emt 0:00:23]} 37. g5 {[%emt 0:00:24]} fxg5 {[%emt 0:00:38]} 38. hxg5 {[%emt 0:00:07]} Ke7 {[%emt 0:00:18]} 39. Ne5 {[%emt 0:01:34]} Kd6 {[%emt 0:00:51]} 40. Kg3 {[%emt 0:00:08]} Ba6 {[%emt 0:00:38]} 41. Kf4 {[%emt 0:30:18]} Bb7 {[%emt 0:30:16]} 42. Ng4 {[%emt 0:02:05]} Ke7 {[%emt 0:00:05]} 43. Ke5 {[%emt 0:00:31] Weighted Error Value: White=0.22 (precise) /Black=0.59} 1-0

[Event "Austrian Championship 2022"]
[Site "Vienna"]
[Date "2022.08.15"]
[Round "5.5"]
[White "Wiedermann, Daniel"]
[Black "Ivanyk, Igor"]
[Result "0-1"]
[ECO "E20"]
[WhiteElo "2053"]
[BlackElo "2002"]
[Annotator "NA RC"]
[PlyCount "92"]
[EventDate "2022.08.12"]
[EventType "swiss"]
[EventCountry "AUT"]
[SourceTitle "playchess.com"]
[Source "ChessBase"]
[SourceQuality "1"]
[TimeControl "40/5400+30:1800+30"]

1. d4 {[%emt 0:00:02]} Nf6 {[%emt 0:00:11]} 2. c4 {[%emt 0:00:02]} e6 {[%emt 0:00:05]} 3. Nc3 {[%emt 0:00:16]} Bb4 {[%emt 0:00:07]} 4. f3 {[%emt 0:00:11]} c5 {[%emt 0:00:18]} 5. d5 {[%emt 0:00:10]} d6 {[%emt 0:00:07]} 6. e4 {[%emt 0:00:31]} b5 {[%emt 0:00:25]} 7. Nge2 {[%emt 0:14:09]} bxc4 {[%emt 0:00:42]} 8. Nf4 {[%emt 0:00:04]} e5 {[%emt 0:01:10]} 9. Nfe2 {[%emt 0:00:03]} Nbd7 {[%emt 0:06:58]} 10. Ng3 {[%emt 0:06:23]} Nb6 {[%emt 0:05:54]} 11. Be2 {[%emt 0:04:08]} O-O {[%emt 0:04:27]} 12. O-O {[%emt 0:00:11]} Ne8 {[%emt 0:15:11]} 13. Qc2 {[%emt 0:17:41]} Bd7 {[%emt 0:19:57]} 14. f4 {[%emt 0:08:11]} a6 {[%emt 0:06:15]} 15. f5 {[%emt 0:11:44]} f6 {[%emt 0:03:53]} 16. Bh5 {[%emt 0:10:10]} Nc7 {[%emt 0:00:50]} 17. Qe2 {[%emt 0:00:23]} Nb5 {[%emt 0:05:10]} 18. Bg6 {[%emt 0:07:38]} Be8 {[%emt 0:06:12]} 19. Bxe8 {[%emt 0:02:50]} Qxe8 {[%emt 0:01:17]} 20. Nxb5 {[%emt 0:01:33]} axb5 {[%emt 0:00:55]} 21. Qg4 {[%emt 0:00:06]} Kh8 {[%emt 0:02:08]} 22. Rf3 {[%emt 0:01:09]} Rf7 {[%emt 0:05:43]} 23. Nh5 {[%emt 0:00:34]} Rfa7 {[%emt 0:01:29]} 24. a3 {[%emt 0:01:00]} Qf7 {[%emt 0:00:40]} 25. Rh3 {[%emt 0:01:44]} c3 {[%emt 0:01:19]} 26. Qh4 {[%emt 0:01:43]} cxb2 {[%emt 0:01:37]} 27. Bxb2 {[%emt 0:00:02]} Bd2 {[%emt 0:02:48]} 28. Nf4 {[%emt 0:00:26]} h6 {[%emt 0:00:55]} 29. Ne6 {[%emt 0:03:00]} Nc4 {[%emt 0:01:40]} 30. Bc1 {[%emt 0:01:19]} Bxc1 {[%emt 0:00:31]} 31. Rxc1 {[%emt 0:00:02]} Rxa3 {[%emt 0:00:36]} 32. Rxa3 {[%emt 0:01:50]} Rxa3 {[%emt 0:00:08]} 33. g4 {[%emt 0:00:03]} Nd2 {[%emt 0:01:13]} 34. Qf2 {[%emt 0:01:35]} Nxe4 {[%emt 0:01:45]} 35. Qe2 {[%emt 0:00:21]} Nc3 {[%emt 0:00:45]} 36. Qb2 {[%emt 0:00:13]} b4 {[%emt 0:00:18]} 37. Qd2 {[%emt 0:04:05]} Ra2 {[%emt 0:01:51]} 38. Rc2 {[%emt 0:00:03]} Qa7 {[%emt 0:00:18]} 39. Rxa2 {[%emt 0:02:21]} Qxa2 {[%emt 0:00:12]} 40. Qxa2 {[%emt 0:00:10]} Nxa2 {[%emt 0:00:08]} 41. Nxc5 {[%emt 0:30:23]} Nc3 {[%emt 0:05:42]} 42. Nb3 {[%emt 0:00:00]} Nxd5 {[%emt 0:00:40]} 43. Kf2 {[%emt 0:00:00]} Nf4 {[%emt 0:01:37]} 44. Ke3 {[%emt 0:00:00]} h5 {[%emt 0:00:52]} 45. gxh5 {[%emt 0:00:00]} Kh7 {[%emt 0:00:28]} 46. Ke4 {[%emt 0:00:00]} Kh6 {[%emt 0:00:00]} 0-1

[Event "Austrian Championship 2022"]
[Site "Vienna"]
[Date "2022.08.15"]
[Round "5.6"]
[White "Schwabeneder, Florian"]
[Black "Froewis, Annika"]
[Result "0-1"]
[ECO "D36"]
[WhiteElo "2430"]
[BlackElo "2044"]
[Annotator "TA"]
[PlyCount "90"]
[EventDate "2022.08.12"]
[EventType "swiss"]
[EventCountry "AUT"]
[SourceTitle "playchess.com"]
[Source "ChessBase"]
[SourceQuality "1"]
[TimeControl "40/5400+30:1800+30"]

{[%evp 16,90,24,9,48,76,80,31,43,43,52,18,39,24,46,42,47,42,22,35,53,32,31,0,50,22,18,0,4,13,16,21,36,8,8,10,27,24,44,43,34,35,45,23,45,57,77,97,103,95,89,98,112,44,158,123,122,101,91,-389,-384,-388,-390,-375,-373,-687,-685,-679,-676,-598,-587,-1023,-989,-1352,-1216,-1183,-1168]} 1. d4 {[%emt 0:00:08]} d5 {[%emt 0:00:13]} 2. c4 {[%emt 0:00:18]} e6 {[%emt 0:00:06]} 3. Nc3 {[%emt 0:00:20]} Nf6 {[%emt 0:00:09]} 4. cxd5 {[%emt 0:00:26]} exd5 {[%emt 0:00:06]} 5. Bg5 {[%emt 0:00:14]} Be7 {[%emt 0:00:07]} 6. e3 {[%emt 0:00:32]} c6 {[%emt 0:00:15]} 7. Bd3 {[%emt 0:00:23]} Nbd7 {[%emt 0:00:17]} 8. Qc2 {[%emt 0:01:19]} Nf8 {[%emt 0:00:18] Recently 8...Nh5 got a lot of attention.} 9. Nf3 {[%emt 0:04:56]} Nh5 {[%emt 0:06:59] D36: Queen's Gambit Declined: Exchange Variation: Main line (5 Bg5 c6 6 Qc2).} 10. Bxe7 {[%emt 0:02:57]} Qxe7 {[%emt 0:00:02]} 11. O-O-O {[%emt 0:12:25]} (11. O-O $16) 11... Be6 {[%emt 0:06:42] White is slightly better.} 12. Kb1 {[%emt 0:07:59]} g6 {[%emt 0:13:14] [#]} 13. h3 $146 {[%emt 0:04:31]} ({Predecessor:} 13. Rhe1 f5 14. Ne5 Nd7 15. Nxd7 Qxd7 16. Ne2 Nf6 17. f3 O-O-O 18. h3 Kb8 19. Nf4 {½-½ (50) Serper,G (2546)-Shen,S (2232) Minneapolis 2005}) 13... Nd7 {[%emt 0:07:05]} 14. Rhe1 {[%emt 0:09:31]} Nb6 {[%emt 0:10:28]} 15. g4 {[%emt 0:06:22]} Nf6 {[%emt 0:05:13]} 16. Ne5 {[%emt 0:01:46]} Nfd7 {[%emt 0:11:03]} 17. Nxd7 {[%emt 0:11:02]} Qxd7 {[%emt 0:00:59]} 18. f4 {[%emt 0:00:27]} (18. a4 $5 {[%cal Rf2f4]}) 18... f5 {[%emt 0:04:54]} 19. gxf5 {[%emt 0:09:14]} gxf5 {[%emt 0:03:14]} (19... Bxf5 $11 20. Bxf5 gxf5) 20. b3 {[%emt 0:02:29]} O-O-O {[%emt 0:04:04]} 21. Rg1 {[%emt 0:00:43]} Rhg8 {[%emt 0:01:21]} 22. Rg5 {[%emt 0:02:41]} Rdf8 {[%emt 0:04:36]} 23. Rdg1 {[%emt 0:01:59]} Rxg5 {[%emt 0:01:17]} 24. Rxg5 {[%emt 0:00:09]} Kb8 {[%emt 0:01:07]} 25. Ne2 {[%emt 0:02:40]} Nc8 {[%emt 0:01:04]} 26. Ng1 {[%emt 0:00:54]} Nd6 {[%emt 0:01:07]} 27. Nf3 {[%emt 0:00:11]} Qc7 {[%emt 0:05:50]} 28. Ne5 {[%emt 0:06:28]} Rc8 {[%emt 0:04:12]} 29. Qc3 {[%emt 0:01:55]} Ka8 {[%emt 0:00:57]} 30. h4 {[%emt 0:03:01]} Rg8 {[%emt 0:02:54]} 31. Qc5 {[%emt 0:03:17]} Rc8 {[%emt 0:02:45][%cal Bg8c8,Bc8c7,Bc7g7][%mdl 32]} 32. h5 {[%emt 0:00:27]} b6 {[%emt 0:00:58]} 33. Qc2 {[%emt 0:01:54] [#] Threatens to win with h6.} c5 {[%emt 0:01:20]} 34. h6 {[%emt 0:00:30]} (34. Ba6 $16 Re8 35. h6) 34... Qd8 {[%emt 0:01:29]} ({Black should play} 34... cxd4 $1 $14 35. Qxc7 (35. exd4 Qd8 $11) 35... Rxc7) 35. Ba6 {[%emt 0:02:15]} Rc7 {[%emt 0:00:10]} 36. Rg7 {[%emt 0:00:51]} Ne8 {[%emt 0:01:08]} 37. Nc6 $2 {[%emt 0:01:12][%mdl 8192] Now White is beyond hope.} Qd6 $19 {[%emt 0:00:26]} 38. Ne5 {[%emt 0:00:32]} ({Much worse is} 38. Rxc7 Nxc7 39. dxc5 Qxc6 $19) 38... Nxg7 {[%emt 0:00:20]} 39. hxg7 {[%emt 0:00:28]} Rxg7 {[%emt 0:00:24][%cal Oc5c4]} 40. Qh2 $2 {[%emt 0:00:32]} (40. Be2) 40... cxd4 {[%emt 0:00:55] Black is clearly winning.} 41. exd4 {[%emt 0:30:19]} Qb4 {[%emt 0:04:37]} 42. Qf2 {[%emt 0:00:00]} Qc3 {[%emt 0:04:43] [#] Against Qe3. And now ...Rc7 would win.} 43. Nd3 {[%emt 0:00:00]} Qa5 {[%emt 0:04:20]} 44. Qc2 {[%emt 0:00:00]} Qxa6 {[%emt 0:03:58]} 45. Qc6+ {[%emt 0:00:00]} Kb8 {[%emt 0:02:14] Weighted Error Value: White=0.62/Black=0.14 (very precise)} 0-1

[Event "Austrian Championship 2022"]
[Site "Vienna"]
[Date "2022.08.15"]
[Round "5.6"]
[White "Miazhynski, Michael"]
[Black "Spiesberger, Gerhard"]
[Result "1/2-1/2"]
[ECO "B01"]
[WhiteElo "1994"]
[BlackElo "1972"]
[Annotator "NA RC"]
[PlyCount "65"]
[EventDate "2022.08.12"]
[EventType "swiss"]
[EventCountry "AUT"]
[SourceTitle "playchess.com"]
[Source "ChessBase"]
[SourceQuality "1"]
[TimeControl "40/5400+30:1800+30"]

1. e4 {[%emt 0:00:03]} d5 {[%emt 0:00:50]} 2. exd5 {[%emt 0:00:06]} Qxd5 {[%emt 0:00:04]} 3. Nf3 {[%emt 0:00:05]} Nc6 {[%emt 0:01:58]} 4. Be2 {[%emt 0:00:06]} e5 {[%emt 0:03:08]} 5. O-O {[%emt 0:03:02]} f6 {[%emt 0:01:37]} 6. Re1 {[%emt 0:00:57]} Bd7 {[%emt 0:01:40]} 7. d4 {[%emt 0:13:02]} O-O-O {[%emt 0:03:11]} 8. c4 {[%emt 0:01:45]} Qa5 {[%emt 0:03:22]} 9. d5 {[%emt 0:01:21]} Bg4 {[%emt 0:00:55]} 10. Nxe5 {[%emt 0:11:34]} Nxe5 {[%emt 0:07:19]} 11. Bxg4+ {[%emt 0:00:54]} Kb8 {[%emt 0:00:21]} 12. Be2 {[%emt 0:09:14]} Bc5 {[%emt 0:04:46]} 13. Nc3 {[%emt 0:00:44]} Nh6 {[%emt 0:09:24]} 14. Qc2 {[%emt 0:09:06]} Nhg4 {[%emt 0:03:04]} 15. Rf1 {[%emt 0:00:27]} Rhe8 {[%emt 0:00:50]} 16. h3 {[%emt 0:01:10]} Nxf2 {[%emt 0:09:04]} 17. Rxf2 {[%emt 0:03:15]} Bxf2+ {[%emt 0:01:10]} 18. Kxf2 {[%emt 0:00:11]} Nxc4 {[%emt 0:00:14]} 19. Kg1 {[%emt 0:11:34]} Qc5+ {[%emt 0:04:05]} 20. Kh1 {[%emt 0:01:14]} Qf2 {[%emt 0:03:17]} 21. Ne4 {[%emt 0:05:34]} Qe1+ {[%emt 0:06:11]} 22. Kh2 {[%emt 0:00:03]} Ne3 {[%emt 0:08:04]} 23. Bxe3 {[%emt 0:00:16]} Qxa1 {[%emt 0:00:24]} 24. Bf4 {[%emt 0:01:23]} Re5 {[%emt 0:03:12]} 25. Nc5 {[%emt 0:11:18]} Qxa2 {[%emt 0:04:50]} 26. Bxe5 {[%emt 0:01:13]} fxe5 {[%emt 0:00:36]} 27. Nxb7 {[%emt 0:00:19]} Kxb7 {[%emt 0:03:07]} 28. Qc6+ {[%emt 0:00:09]} Kb8 {[%emt 0:00:08]} 29. Qb5+ {[%emt 0:00:05]} Ka8 {[%emt 0:01:15]} 30. Bc4 {[%emt 0:00:17]} Qa1 {[%emt 0:02:20]} 31. Qc6+ {[%emt 0:05:33]} Kb8 {[%emt 0:00:13]} 32. Qb5+ {[%emt 0:00:07]} Ka8 {[%emt 0:00:06]} 33. Qc6+ {[%emt 0:04:06]} 1/2-1/2

[Event "Austrian Championship 2022"]
[Site "Vienna"]
[Date "2022.08.15"]
[Round "5.7"]
[White "Morgunov, Marc"]
[Black "Kilgus, Georg"]
[Result "1-0"]
[ECO "C78"]
[WhiteElo "2376"]
[BlackElo "2386"]
[Annotator "TA"]
[PlyCount "73"]
[EventDate "2022.08.12"]
[EventType "swiss"]
[EventCountry "AUT"]
[SourceTitle "playchess.com"]
[Source "ChessBase"]
[SourceQuality "1"]
[TimeControl "40/5400+30:1800+30"]

{[%evp 22,73,1,21,60,48,57,56,56,49,62,42,44,55,50,68,83,75,71,75,146,143,187,181,182,167,159,168,282,312,320,312,304,284,374,229,183,113,119,91,374,295,504,495,568,553,452,359,368,311,531,552,29989,5261]} 1. e4 {[%emt 0:00:36]} e5 {[%emt 0:00:04]} 2. Nf3 {[%emt 0:00:05]} Nc6 {[%emt 0:00:02]} 3. Bb5 {[%emt 0:00:05]} a6 {[%emt 0:00:02]} 4. Ba4 {[%emt 0:00:04]} Nf6 {[%emt 0:00:03]} 5. O-O {[%emt 0:00:06]} b5 {[%emt 0:00:01]} 6. Bb3 {[%emt 0:00:04]} Bb7 {[%emt 0:00:02]} 7. Re1 {[%emt 0:11:36]} Bc5 {[%emt 0:00:41]} 8. c3 {[%emt 0:00:27]} d6 {[%emt 0:00:03]} 9. d4 {[%emt 0:00:38]} Bb6 {[%emt 0:00:05]} 10. a4 {[%emt 0:00:12]} O-O {[%emt 0:00:17]} 11. Bg5 {[%emt 0:00:28]} h6 {[%emt 0:00:05]} 12. Bh4 {[%emt 0:00:03]} Re8 {[%emt 0:00:48] C78: Ruy Lopez: Archangelsk and Möller Defences.} 13. d5 {[%emt 0:03:31]} Na5 {[%emt 0:00:30]} 14. Bc2 {[%emt 0:00:13]} c6 {[%emt 0:28:57] White is slightly better.} 15. dxc6 {[%emt 0:00:06]} Bxc6 {[%emt 0:06:35]} 16. Na3 {[%emt 0:00:05][%cal Bb1a3,Ba3c4,Bc4e3,Be3f5][%mdl 32]} g5 {[%emt 0:04:06]} 17. Bg3 {[%emt 0:03:45] [#]} bxa4 $146 {[%emt 0:17:29]} ({Predecessor:} 17... Nb7 18. b4 Qd7 19. axb5 axb5 20. c4 bxc4 21. Nxc4 Rxa1 22. Qxa1 Bc7 23. Ne3 Nh5 {1-0 (46) Fyhn,K (2353)-Lylloff,K (2006) Denmark 2002}) 18. Bxa4 {[%emt 0:04:29]} Qd7 {[%emt 0:00:02]} 19. Bc2 {[%emt 0:01:39]} Nb7 {[%emt 0:07:26]} 20. Nc4 {[%emt 0:06:54]} Bc7 {[%emt 0:03:00]} (20... Ba7 $142) 21. b4 {[%emt 0:04:33]} a5 {[%emt 0:01:24]} 22. Ne3 {[%emt 0:02:47]} axb4 {[%emt 0:08:41]} (22... Bxe4 $2 23. Bxe4 Nxe4 24. Nd5 $18) 23. Rxa8 {[%emt 0:02:47]} Rxa8 {[%emt 0:00:03]} 24. cxb4 {[%emt 0:00:04] aiming for Nf5.} Nd8 {[%emt 0:02:43]} (24... Kf8 $142 25. Nf5 Nxe4) 25. Nf5 $18 {[%emt 0:03:19]} Kh7 {[%emt 0:00:02]} 26. h4 {[%emt 0:05:27]} Ne6 {[%emt 0:00:04]} 27. hxg5 {[%emt 0:00:57]} hxg5 {[%emt 0:00:04]} 28. Qd2 {[%emt 0:00:08]} Kg6 {[%emt 0:00:54]} 29. Bb3 {[%emt 0:19:22]} ({White should play} 29. Qc1 $18) 29... Nf4 {[%emt 0:07:40]} 30. Bxf4 {[%emt 0:00:17] White is more active.} exf4 {[%emt 0:01:32][%mdl 8192] Black cannot hold the game after this.} (30... gxf4 $16 31. Qc2 Ra3) 31. Bc2 {[%emt 0:00:42]} Ra2 $2 {[%emt 0:02:15]} (31... Ba4 32. Bb1 Re8) 32. N5d4 {[%emt 0:05:42] [#] Threatens to win with e5+. Pair of Knights!} Ba4 {[%emt 0:00:42]} 33. e5+ {[%emt 0:02:30]} Bxc2 {[%emt 0:01:16]} 34. exf6 {[%emt 0:00:05]} Qa4 {[%emt 0:00:02]} 35. Qc3 {[%emt 0:03:38]} ({Inferior is} 35. Re7 Be4 36. Qc3 Qd1+ 37. Ne1 Bd5 38. Rxc7 Rd2 $17) 35... Bb6 {[%emt 0:00:52]} (35... Bd8 36. Qc8 Qa8) 36. Qc8 {[%emt 0:00:55] [#] White wants to mate with Qg8+.} Kxf6 {[%emt 0:04:12]} 37. Qg8 {[%emt 0:00:27] Weighted Error Value: White=0.11 (very precise) /Black=0.72} 1-0

[Event "Austrian Championship 2022"]
[Site "Vienna"]
[Date "2022.08.15"]
[Round "5.7"]
[White "Geroe, Leonhard"]
[Black "Stadlinger, Lea"]
[Result "1-0"]
[ECO "D36"]
[WhiteElo "2017"]
[BlackElo "1723"]
[Annotator "NA RC"]
[PlyCount "71"]
[EventDate "2022.08.12"]
[EventType "swiss"]
[EventCountry "AUT"]
[SourceTitle "playchess.com"]
[Source "ChessBase"]
[SourceQuality "1"]
[TimeControl "40/5400+30:1800+30"]

1. d4 {[%emt 0:00:02]} d5 {[%emt 0:00:15]} 2. c4 {[%emt 0:00:09]} e6 {[%emt 0:00:29]} 3. Nc3 {[%emt 0:00:07]} Nf6 {[%emt 0:00:43]} 4. cxd5 {[%emt 0:00:08]} exd5 {[%emt 0:00:57]} 5. Bg5 {[%emt 0:00:12]} Be7 {[%emt 0:02:10]} 6. e3 {[%emt 0:00:24]} O-O {[%emt 0:02:28]} 7. Bd3 {[%emt 0:00:49]} c6 {[%emt 0:01:41]} 8. Qc2 {[%emt 0:00:25]} Nbd7 {[%emt 0:01:13]} 9. Nge2 {[%emt 0:01:13]} h6 {[%emt 0:02:32]} 10. Bh4 {[%emt 0:01:22]} Re8 {[%emt 0:04:01]} 11. O-O {[%emt 0:00:17]} Ne4 {[%emt 0:03:37]} 12. Bxe7 {[%emt 0:00:59]} Qxe7 {[%emt 0:00:10]} 13. Bxe4 {[%emt 0:00:14]} dxe4 {[%emt 0:00:21]} 14. Rfd1 {[%emt 0:00:07]} Nf6 {[%emt 0:07:04]} 15. d5 {[%emt 0:10:01]} cxd5 {[%emt 0:05:19]} 16. Nxd5 {[%emt 0:00:20]} Nxd5 {[%emt 0:03:41]} 17. Rxd5 {[%emt 0:00:21]} Bd7 {[%emt 0:08:47]} 18. Qd2 {[%emt 0:17:19]} Bc6 {[%emt 0:05:14]} 19. Rd4 {[%emt 0:00:19]} Rad8 {[%emt 0:06:07]} 20. Rc1 {[%emt 0:01:41]} Bb5 {[%emt 0:04:38]} 21. Nc3 {[%emt 0:10:25]} Bd3 {[%emt 0:13:02]} 22. Nd5 {[%emt 0:09:31]} Qg5 {[%emt 0:03:32]} 23. f4 {[%emt 0:02:11]} Qxd5 {[%emt 0:11:07]} 24. Rxd5 {[%emt 0:00:35]} Rxd5 {[%emt 0:00:09]} 25. Rc7 {[%emt 0:05:25]} Re6 {[%emt 0:07:00]} 26. Qc3 {[%emt 0:02:30]} Ba6 {[%emt 0:02:13]} 27. Qc2 {[%emt 0:06:11]} Bd3 {[%emt 0:03:29]} 28. Qc1 {[%emt 0:00:55]} Red6 {[%emt 0:00:13]} 29. Rc8+ {[%emt 0:01:24]} Kh7 {[%emt 0:00:07]} 30. Rc5 {[%emt 0:00:06]} Rxc5 {[%emt 0:01:22]} 31. Qxc5 {[%emt 0:00:05]} Rc6 {[%emt 0:00:06]} 32. Qf5+ {[%emt 0:00:27]} Kg8 {[%emt 0:00:11]} 33. h3 {[%emt 0:00:15]} Rc1+ {[%emt 0:01:22]} 34. Kh2 {[%emt 0:00:30]} Rc2 {[%emt 0:00:30]} 35. Qe5 {[%emt 0:01:09]} Bf1 {[%emt 0:01:37]} 36. Qe8+ {[%emt 0:00:21]} 1-0